Workbook

Sheet Leht1
C1: Noortespordi tegevustoetuste eelarve 2013
B3: Spordiala | C3: Asutuse nimi | D3: õpilaste arv | E3: taotletud | F3: Õpilaste arv | G3: eelisala | H3: 2x | I3: 50% III | J3: 4.-5.aste | K3: järjep. | L3: alaliit | M3: Koefitsient | N3: Pearaha | O3: Eraldatud
A4: 1 | B4: aerutamine | C4: Sõudmise ja Aerutamise klubi "Tartu" | D4: 70 | E4: 30000 | F4: 36 | G4: 0.3 | H4: 0.1 | I4: 0.2 | J4: 0.1 | K4: 0.1 | L4: 0.2 | M4: =SUM(G4:L4) -> 1 | N4: 223 | O4: =M4*N5*F4 -> 8028
A5: 2 | B5: akrobaatika | C5: Spordiklubi "Biomechanics group" | D5: 60 | E5: 6500 | F5: 26 | H5: 0.1 | I5: 0.2 | J5: 0 | K5: 0.1 | L5: 0.2 | M5: =SUM(G5:L5) -> 0.6 | N5: 223 | O5: =F5*M5*N6 -> 3478.8
A6: 3 | B6: iluuisutamine | C6: Iluuisutamisklubi Staar | D6: 40 | E6: 5362 | F6: 23 | G6: 0.3 | H6: 0.1 | I6: 0.2 | J6: 0 | K6: 0.1 | L6: 0 | M6: 0.7 | N6: 223 | O6: 3590.3
A7: 4 | B7: iluuisutamine | C7: mittetulundusühing Iluuisutamisklubi "Tartu" | D7: 120 | E7: 14150 | F7: 66 | G7: 0.3 | H7: 0.1 | I7: 0.2 | J7: 0.1 | K7: 0.1 | L7: 0.2 | M7: 1 | N7: 223 | O7: 14718
A8: 5 | B8: invasport | C8: Mittetulundusühing Spordiklubi Flüüger | D8: 5 | E8: 1200 | F8: 5 | G8: 1 | H8: 0 | I8: 0 | J8: 0 | K8: 0 | L8: 0 | M8: 1 | N8: 223 | O8: 1115
A9: 6 | B9: invasport | C9: Tartu Kurtide Spordiselts Kaar | D9: 6 | E9: 2241 | F9: 4 | G9: 1 | H9: 0 | I9: 0 | J9: 0 | K9: 0 | L9: 0 | M9: 1 | N9: 223 | O9: 892
A10: 7 | B10: jalgpall | C10: Jalgpalliklubi "Merkuur-Juunior" | D10: 113 | E10: 34400 | F10: 80 | G10: 0.3 | H10: 0.1 | I10: 0.2 | J10: 0 | K10: 0.1 | L10: 0.2 | M10: 0.9 | N10: 223 | O10: 16056
A11: 8 | B11: jalgpall | C11: JALGPALLIKLUBI FC TARTU | D11: 125 | E11: 25000 | F11: 39 | G11: 0.3 | H11: 0.1 | I11: 0 | J11: 0 | K11: 0.1 | L11: 0.1 | M11: 0.6 | N11: 223 | O11: 5218.2
A12: 9 | B12: jalgpall | C12: Mittetulundusühing FC Helios | D12: 100 | E12: 14500 | F12: 66 | G12: 0.3 | H12: 0.1 | I12: 0.2 | J12: 0 | K12: 0.1 | L12: 0.1 | M12: 0.8 | N12: 223 | O12: 11774.4
A13: 10 | B13: jalgpall | C13: Mittetulundusühing FC Santos | D13: 270 | E13: 54189 | F13: 194 | G13: 0.3 | H13: 0.1 | I13: 0 | J13: 0 | K13: 0.1 | L13: 0.2 | M13: 0.7 | N13: 223 | O13: 30283.4
A14: 11 | B14: jalgpall | C14: Mittetulundusühing Jalgpallikool Tammeka | D14: 300 | E14: 50000 | F14: 205 | G14: 0.3 | H14: 0.1 | I14: 0.2 | J14: 0 | K14: 0.1 | L14: 0.2 | M14: 0.9 | N14: 223 | O14: 41143.5
A15: 12 | B15: jalgpall | C15: Spordiklubi 10 | D15: 60 | E15: 20000 | F15: 30 | G15: 0.3 | H15: 0.1 | I15: 0.2 | J15: 0 | K15: 0.1 | L15: 0.2 | M15: 0.9 | N15: 223 | O15: 6021
A16: 13 | B16: jalgrattasport | C16: mittetulundusühing Peloton | D16: 15 | E16: 3450 | F16: 6 | G16: 0.3 | H16: 0.1 | I16: 0.2 | J16: 0.1 | K16: 0 | L16: 0 | M16: 0.7 | N16: 223 | O16: 936.6
A17: 14 | B17: jalgrattasport | C17: Mittetulundusühing Tartu Ülikooli Akadeemiline Spordiklubi | D17: 35 | E17: 5425 | F17: 20 | G17: 0.3 | H17: 0.1 | I17: 0.2 | J17: 0.1 | K17: 0.1 | L17: 0.2 | M17: 1 | N17: 223 | O17: 4460
A18: 15 | B18: jalgrattasport | C18: Rein Taaramäe Rattaklubi | D18: 50 | E18: 18000 | F18: 28 | G18: 0.3 | H18: 0.1 | I18: 0.2 | J18: 0.1 | K18: 0.1 | L18: 0.2 | M18: 1 | N18: 223 | O18: 6244
A19: 16 | B19: jalgrattasport | C19: Spordiklubi VELO | D19: 70 | E19: 16000 | F19: 29 | G19: 0.3 | H19: 0.1 | I19: 0.2 | J19: 0.1 | K19: 0.1 | L19: 0.2 | M19: 1 | N19: 223 | O19: 6467
A20: 17 | B20: judo | C20: SPORDIKLUBI "DO" | D20: 250 | E20: 400000 | F20: 131 | G20: 0.3 | H20: 0.1 | I20: 0.2 | J20: 0.1 | K20: 0.1 | L20: 0.2 | M20: 1 | N20: 223 | O20: 29213
A21: 18 | B21: judo | C21: spordiklubi Dodze | D21: 70 | E21: 16000 | F21: 46 | G21: 0.3 | H21: 0.1 | I21: 0.2 | J21: 0.1 | K21: 0.1 | L21: 0.1 | M21: 0.9 | N21: 223 | O21: 9232.2
A22: 19 | B22: judo | C22: Spordiklubi ZEN | D22: 240 | E22: 46000 | F22: 118 | G22: 0.3 | H22: 0.1 | I22: 0.2 | J22: 0.1 | K22: 0.1 | L22: 0.2 | M22: 1 | N22: 223 | O22: 26314
A23: 20 | B23: jäähoki | C23: Tartu Spordiklubi "Kajakas" | D23: 91 | E23: 21130 | F23: 60 | G23: 0.3 | H23: 0.1 | I23: 0.2 | J23: 0.1 | K23: 0.1 | L23: 0.2 | M23: 1 | N23: 223 | O23: 13380
A24: 21 | B24: karate | C24: Karateklubi FALCO | D24: 160 | E24: 25000 | F24: 74 | G24: 0.3 | H24: 0.1 | I24: 0.2 | J24: 0 | K24: 0.1 | L24: 0.2 | M24: 0.9 | N24: 223 | O24: 14851.8
A25: 22 | B25: karate | C25: Spordiklubi "BudoArt" | D25: 100 | E25: 50000 | F25: 67 | G25: 0.3 | H25: 0.1 | I25: 0.2 | J25: 0.1 | K25: 0.1 | L25: 0.1 | M25: 0.9 | N25: 223 | O25: 13446.9
A26: 23 | B26: kergejõustik | C26: Mittetulundusühing Tartu Ülikooli Akadeemiline Spordiklubi | D26: 420 | E26: 80500 | F26: 267 | G26: 0.3 | H26: 0.1 | I26: 0.2 | J26: 0.1 | K26: 0.1 | L26: 0.2 | M26: 1 | N26: 223 | O26: 59541
A27: 24 | B27: kergejõustik | C27: Tartu Spordiselts "Kalev" | D27: 230 | E27: 52900 | F27: 213 | G27: 0.3 | H27: 0.1 | I27: 0.2 | J27: 0.1 | K27: 0.1 | L27: 0.2 | M27: 1 | N27: 223 | O27: 47499
A28: 25 | B28: kick-boxing | C28: spordiklubi KLAN | D28: 52 | E28: 8000 | F28: 55 | H28: 0.1 | I28: 0.2 | J28: 0.1 | K28: 0.1 | L28: 0.2 | M28: 0.7 | N28: 223 | O28: =F28*M28*N28 -> 8585.5
A29: 26 | B29: kick-boxing | C29: Spordiklubi Kombat | D29: 50 | E29: 5000 | F29: 24 | H29: 0.1 | I29: 0.2 | J29: 0.1 | K29: 0.1 | L29: 0.2 | M29: =SUM(G29:L29) -> 0.7 | N29: 223 | O29: =F29*M29*N29 -> 3746.4
A30: 27 | B30: korvpall | C30: mittetulundusühing Erkmaa Korvpallikool | D30: 110 | E30: 24530 | F30: 66 | G30: 0.3 | H30: 0.1 | I30: 0.2 | J30: 0.1 | K30: 0.1 | L30: 0.2 | M30: 1 | N30: 223 | O30: 14718
A31: 28 | B31: korvpall | C31: Mittetulundusühing TARTU PALLIKLUBI | D31: 50 | E31: 8750 | F31: 63 | G31: 0.3 | H31: 0.1 | I31: 0.2 | J31: 0.1 | K31: 0.1 | L31: 0 | M31: 0.8 | N31: 223 | O31: 11239.2
A32: 29 | B32: korvpall | C32: Mittetulundusühing Tartu Ülikooli Akadeemiline Spordiklubi | D32: 240 | E32: 49000 | F32: 140 | G32: 0.3 | H32: 0.1 | I32: 0.2 | J32: 0.1 | K32: 0.1 | L32: 0.2 | M32: 1 | N32: 223 | O32: 31220
A33: 30 | B33: korvpall | C33: Tartu Spordiselts "Kalev" | D33: 190 | E33: 50000 | F33: 115 | G33: 0.3 | H33: 0.1 | I33: 0.2 | J33: 0.1 | K33: 0.1 | L33: 0.2 | M33: 1 | N33: 223 | O33: 25645
A34: 31 | B34: käsipall | C34: Mittetulundusühing Tartu Ülikooli Akadeemiline Spordiklubi | D34: 47 | E34: 9400 | F34: 36 | H34: 0.1 | I34: 0.2 | J34: 0.1 | K34: 0.1 | L34: 0.1 | M34: 0.6 | N34: 223 | O34: 4816.8
A35: 32 | B35: lauatennis | C35: Mittetulundusühing Tartu Ülikooli Akadeemiline Spordiklubi | D35: 20 | E35: 3200 | F35: 12 | H35: 0.1 | I35: 0 | J35: 0 | K35: 0.1 | L35: 0 | M35: 0.2 | N35: 223 | O35: 535.2
A36: 33 | B36: lauatennis | C36: Tartu Spordiselts "Kalev" | D36: 45 | E36: 10350 | F36: 36 | H36: 0.1 | I36: 0.2 | J36: 0 | K36: 0.1 | L36: 0.2 | M36: 0.6 | N36: 223 | O36: 4816.8
A37: 34 | B37: maadlus | C37: Eesti Maaülikooli Spordiklubi | D37: 30 | E37: 7600 | F37: 8 | G37: 0.3 | H37: 0.1 | I37: 0.2 | J37: 0.1 | K37: 0.1 | L37: 0.2 | M37: 1 | N37: 223 | O37: 1784
A38: 35 | B38: maadlus | C38: Mittetulundusühing Tartu Ülikooli Akadeemiline Spordiklubi | D38: 14 | E38: 3260 | F38: 9 | G38: 0.3 | H38: 0.1 | I38: 0.2 | J38: 0.1 | K38: 0.1 | L38: 0.1 | M38: 0.9 | N38: 223 | O38: 1806.3
A39: 36 | B39: maadlus | C39: Tartu Spordiselts "Kalev" | D39: 40 | E39: 9200 | F39: 46 | G39: 0.3 | H39: 0.1 | I39: 0.2 | J39: 0.1 | K39: 0.1 | L39: 0.1 | M39: 0.9 | N39: 223 | O39: 9232.2
A40: 37 | B40: male | C40: Tartu Spordiselts "Kalev" | D40: 45 | E40: 6000 | F40: 18 | H40: 0.1 | I40: 0.2 | J40: 0.1 | K40: 0.1 | L40: 0.2 | M40: 0.7 | N40: 223 | O40: 2809.8
A41: 38 | B41: moodne 5-võistlus | C41: Tartu Kaasaegse Viievõistluse Klubi Pentathlon | D41: 50 | E41: 10350 | F41: 25 | H41: 0.1 | I41: 0.2 | J41: 0.1 | K41: 0.1 | L41: 0.2 | M41: 0.7 | N41: 223 | O41: 3902.5
A42: 39 | B42: orienteerumine | C42: ORIENTEERUMISKLUBI ILVES | D42: 20 | E42: 3500 | F42: 8 | H42: 0.1 | I42: 0.2 | J42: 0.1 | K42: 0.1 | L42: 0.2 | M42: 0.7 | N42: 223 | O42: 1248.8
A43: 40 | B43: orienteerumine | C43: Orienteerumisklubi Kape | D43: 10 | E43: 2000 | F43: 5 | H43: 0.1 | I43: 0.2 | J43: 0.1 | K43: 0.1 | L43: 0.1 | M43: 0.6 | N43: 223 | O43: 669
A44: 41 | B44: poks | C44: Mittetulundusühing Tartu Ülikooli Akadeemiline Spordiklubi | D44: 70 | E44: 11650 | F44: 29 | H44: 0.1 | I44: 0.2 | J44: 0.1 | K44: 0.1 | L44: 0.1 | M44: 0.6 | N44: 223 | O44: 3880.2
A45: 42 | B45: poks | C45: Poksiklubi Ring | D45: 30 | E45: 4000 | F45: 6 | H45: 0.1 | I45: 0.2 | J45: 0.1 | K45: 0 | L45: 0 | M45: 0.4 | N45: 223 | O45: 535.2
A46: 43 | B46: poks | C46: Poksiklubi SIRGE | D46: 25 | E46: 1300 | F46: 4 | H46: 0.1 | I46: 0.2 | J46: 0 | K46: 0.1 | L46: 0.1 | M46: 0.5 | N46: 223 | O46: 446
A47: 44 | B47: purjetamine | C47: Jahtklubi "Merikotkas" | D47: 43 | E47: 3950 | F47: 21 | H47: 0.1 | I47: 0.2 | J47: 0 | K47: 0.1 | L47: 0 | M47: 0.4 | N47: 223 | O47: 1873.2
A48: 45 | B48: purjetamine | C48: Tartu Kalevi Jahtklubi | D48: 40 | E48: 1500 | F48: 3 | H48: 0.1 | I48: 0.2 | J48: 0.1 | K48: 0.1 | L48: 0 | M48: 0.5 | N48: 223 | O48: 334.5
A49: 46 | B49: ratsutamine | C49: Liivimaa Ratsaklubi | D49: 60 | E49: 1500 | F49: 9 | H49: 0.1 | I49: 0.2 | J49: 0 | K49: 0.1 | L49: 0.2 | M49: 0.6 | N49: 223 | O49: 1204.2
A50: 47 | B50: ratsutamine | C50: Pärna Ratsaspordiklubi | D50: 15 | E50: 750 | F50: 9 | H50: 0.1 | I50: 0.2 | L50: 0 | M50: 0.3 | N50: 223 | O50: 602.1
A51: 48 | B51: ratsutamine | C51: Ratsarügemendi klubi | D51: 30 | E51: 2000 | F51: 38 | H51: 0.1 | I51: 0.2 | J51: 0 | K51: 0.1 | L51: 0 | M51: 0.4 | N51: 223 | O51: 3389.6
A52: 49 | B52: saalihoki | C52: Eesti Maaülikooli Spordiklubi | D52: 150 | E52: 24500 | F52: 59 | G52: 0.3 | H52: 0.1 | I52: 0.2 | J52: 0.1 | K52: 0.1 | L52: 0.2 | M52: 1 | N52: 223 | O52: 13157
A53: 50 | B53: sulgpall | C53: Mittetulundusühing Tartu Ülikooli Akadeemiline Spordiklubi | D53: 100 | E53: 17500 | F53: 71 | G53: 0.3 | H53: 0.1 | I53: 0.2 | J53: 0.1 | K53: 0.1 | L53: 0.2 | M53: 1 | N53: 223 | O53: 15833
A54: 51 | B54: sulgpall | C54: sulgpalliklubi Triiton | D54: 350 | E54: 78000 | F54: 270 | G54: 0.3 | H54: 0.1 | I54: 0.2 | J54: 0.1 | K54: 0.1 | L54: 0.2 | M54: 1 | N54: 223 | O54: 60210
A55: 52 | B55: sulgpall | C55: Tartu Spordiselts "Kalev" | D55: 45 | E55: 7100 | F55: 35 | G55: 0.3 | H55: 0.1 | I55: 0.2 | K55: 0.1 | L55: 0 | M55: 0.7 | N55: 223 | O55: 5463.5
A56: 53 | B56: suusatamine | C56: Mittetulundusühing SPORDIKLUBI MÄESUUSAKOOL | D56: 11 | E56: 1300 | F56: 8 | H56: 0.1 | I56: 0.2 | K56: 0.1 | L56: 0.2 | M56: 0.6 | N56: 223 | O56: 1070.4
A57: 54 | B57: suusatamine | C57: Tartu Suusaklubi | D57: 90 | E57: 20900 | F57: 78 | G57: 0.3 | H57: 0.1 | I57: 0.2 | J57: 0.1 | K57: 0.1 | L57: 0.2 | M57: 1 | N57: 223 | O57: 17394
A58: 55 | B58: sõudmine | C58: Mittetulundusühing Tartu Ülikooli Akadeemiline Spordiklubi | D58: 52 | E58: 9500 | F58: 27 | G58: 0.3 | H58: 0.1 | I58: 0.2 | K58: 0.1 | L58: 0.2 | M58: 0.9 | N58: 223 | O58: 5418.9
A59: 56 | B59: sõudmine | C59: Sõudmise ja Aerutamise klubi "Tartu" | D59: 70 | E59: 30000 | F59: 29 | G59: 0.3 | H59: 0.1 | I59: 0.2 | J59: 0.1 | K59: 0.1 | L59: 0.2 | M59: 1 | N59: 223 | O59: 6467
A60: 57 | B60: taekwondo | C60: Tartu taekwondoklubi ALFA+ | D60: 30 | E60: 6000 | F60: 17 | H60: 0.1 | I60: 0.2 | K60: 0.1 | L60: 0 | M60: 0.4 | N60: 223 | O60: 1516.4
A61: 58 | B61: tennis | C61: Mittetulundusühing Tartu Tenniseklubi | D61: 300 | E61: 60000 | F61: 170 | G61: 0.3 | H61: 0.1 | I61: 0.2 | J61: 0.1 | K61: 0.1 | L61: 0.2 | M61: 1 | N61: 223 | O61: 37910
A62: 59 | B62: tennis | C62: MK Tenniseklubi | D62: 35 | E62: 7000 | F62: 18 | G62: 0.3 | H62: 0.1 | I62: 0.2 | J62: 0.1 | K62: 0.1 | L62: 0.2 | M62: 1 | N62: 223 | O62: 4014
A63: 60 | B63: tennis | C63: Tenniseklubi Viktor | D63: 70 | E63: 18000 | F63: 41 | G63: 0.3 | H63: 0.1 | I63: 0.2 | J63: 0 | K63: 0.1 | L63: 0 | M63: 0.7 | N63: 223 | O63: 6400.1
A64: 61 | B64: tõstmine | C64: mittetulundusühing SK JÕUD JUNIOR | D64: 40 | E64: 9320 | F64: 17 | H64: 0.1 | I64: 0.2 | J64: 0 | K64: 0.1 | L64: 0.2 | M64: 0.6 | N64: 223 | O64: 2274.6
A65: 62 | B65: tõstmine | C65: Mittetulundusühing Tartu Ülikooli Akadeemiline Spordiklubi | D65: 18 | E65: 4190 | F65: 4 | H65: 0.1 | I65: 0.2 | J65: 0.1 | K65: 0.1 | L65: 0.2 | M65: 0.7 | N65: 223 | O65: 624.4
A66: 63 | B66: ujumine | C66: Mittetulundusühing TARTU UJUMISKLUBI | D66: 450 | E66: 65000 | F66: 316 | G66: 0.3 | H66: 0.1 | I66: 0.2 | J66: 0.1 | K66: 0.1 | L66: 0.2 | M66: 1 | N66: 223 | O66: 70468
A67: 64 | B67: ujumine | C67: Tervise- ja spordiklubi ARENA | D67: 150 | E67: 25000 | F67: 66 | G67: 0.3 | H67: 0.1 | I67: 0.2 | K67: 0.1 | L67: 0 | M67: 0.7 | N67: 223 | O67: 10302.6
A68: 65 | B68: ujumine | C68: Ujumise Spordiklubi MTÜ | D68: 450 | E68: 54000 | F68: 253 | G68: 0.3 | H68: 0.1 | I68: 0.2 | J68: 0.1 | K68: 0.1 | L68: 0.2 | M68: =SUM(G68:L68) -> 1 | N68: 223 | O68: =F68*M68*N68 -> 56419
A69: 66 | B69: veemoto | C69: Tartu Kalevi vee-motoklubi | D69: 15 | E69: 10000 | F69: 9 | G69: 0.3 | H69: 0.1 | I69: 0.2 | J69: 0.1 | K69: 0.1 | L69: 0.2 | M69: 1 | N69: 223 | O69: 2007
A70: 67 | B70: vehklemine | C70: Spordiklubi "Tähtvere" | D70: 36 | E70: 10000 | F70: 21 | G70: 0.3 | H70: 0.1 | I70: 0.2 | J70: 0.1 | K70: 0.1 | L70: 0.1 | M70: 0.9 | N70: 223 | O70: 4214.7
A71: 68 | B71: vehklemine | C71: Tartu Spordiselts "Kalev" | D71: 130 | E71: 30000 | F71: 90 | G71: 0.3 | H71: 0.1 | I71: 0.2 | J71: 0.1 | K71: 0.1 | L71: 0.2 | M71: 1 | N71: 223 | O71: 20070
A72: 69 | B72: võimlemine | C72: Mittetulundusühing Tartu Ülikooli Akadeemiline Spordiklubi | D72: 90 | E72: 11700 | F72: 21 | G72: 0.3 | H72: 0.1 | I72: 0 | J72: 0 | K72: 0.1 | L72: 0.1 | M72: 0.6 | N72: 223 | O72: 2809.8
B73: 5-6 aastased | C73: Mittetulundusühing Tartu Ülikooli Akadeemiline Spordiklubi | F73: 4 | G73: 0.4 | L73: 0 | M73: 0.4 | N73: 223 | O73: 356.8
A74: 70 | B74: võimlemine | C74: Tartu Spordiselts "Kalev" | D74: 60 | E74: 8900 | F74: 20 | G74: 0.3 | H74: 0.1 | I74: 0.2 | J74: 0.1 | K74: 0.1 | L74: 0.1 | M74: 0.9 | N74: 223 | O74: 4014
B75: 5-6 aastased | C75: Tartu Spordiselts "Kalev" | F75: 36 | G75: 0.4 | L75: 0 | M75: 0.4 | N75: 223 | O75: 3211.2
A76: 71 | B76: võimlemine | C76: Võimlemisklubi "Rütmika" | D76: 450 | E76: 45000 | F76: 154 | G76: 0.3 | H76: 0.1 | I76: 0.2 | J76: 0.1 | K76: 0.1 | L76: 0.2 | M76: 1 | N76: 223 | O76: 34342
B77: 5-6 aastased | C77: Võimlemisklubi "Rütmika" | F77: 110 | G77: 0.4 | L77: 0 | M77: 0.4 | N77: 223 | O77: 9812
A78: 72 | B78: võimlemine | C78: Võimlemisklubi Akros | D78: 200 | E78: 13000 | F78: 55 | G78: 0.3 | H78: 0.1 | I78: 0.2 | J78: 0 | K78: 0.1 | L78: 0.1 | M78: 0.8 | N78: 223 | O78: 9812
B79: 5-6 aastased | C79: Võimlemisklubi Akros | F79: 46 | G79: 0.4 | L79: 0 | M79: 0.4 | N79: 223 | O79: =F79*M79*N79 -> 4103.2
A80: 73 | B80: võimlemine | C80: VÕIMLEMISKLUBI JANIKA | D80: 520 | E80: 64000 | F80: 253 | G80: 0.3 | H80: 0.1 | I80: 0.2 | J80: 0.1 | K80: 0.1 | L80: 0.2 | M80: 1 | N80: 223 | O80: 56419
B81: 5-6 aastased | C81: VÕIMLEMISKLUBI JANIKA | F81: 88 | G81: 0.4 | L81: 0 | M81: 0.4 | N81: 223 | O81: 7849.6
A82: 74 | B82: võistlustants | C82: mittetulundusühing Revalia Tantsukool | D82: 118 | E82: 16310 | G82: 0.3 | H82: 0.1 | I82: 0.2 | J82: 0.1 | K82: 0.1 | L82: 0.2 | M82: 1 | N82: 223 | O82: 5120
B83: võistlustants | C83: MTÜ Tantsuklubu Prestige | F83: 46 | M83: 1 | N83: 223 | O83: 5138
A84: 75 | B84: võistlustants | C84: Tantsuklubi "STIIL" | D84: 150 | E84: 15000 | F84: 45 | G84: 0.3 | H84: 0.1 | I84: 0.2 | J84: 0.1 | K84: 0.1 | L84: 0.2 | M84: 1 | N84: 223 | O84: 10035
A85: 76 | B85: võistlustants | C85: Tantsuklubi Tango | D85: 180 | E85: 20000 | F85: 94 | G85: 0.3 | H85: 0.1 | I85: 0.2 | J85: 0.1 | K85: 0.1 | L85: 0.2 | M85: 1 | N85: 223 | O85: 20962
A86: 77 | B86: võrkpall | C86: Spordiklubi Duo | D86: 150 | E86: 34950 | F86: 96 | G86: 0.3 | H86: 0.1 | I86: 0.2 | J86: 0.1 | K86: 0.1 | L86: 0.2 | M86: 1 | N86: 223 | O86: 21408
A87: 78 | B87: võrkpall | C87: Tartu Spordiselts "Kalev" | D87: 160 | E87: 35000 | F87: 113 | G87: 0.3 | H87: 0.1 | I87: 0.2 | J87: 0.1 | K87: 0.1 | L87: 0.2 | M87: 1 | N87: 223 | O87: 25199
F88: =SUM(F4:F87) -> 5398
B89: Tegevustoetuaed kokku | D89: =SUM(D4:D87) -> 8996 | E89: =SUM(E4:E87) -> 1979907 | O89: =SUM(O4:O87) -> 1074770.8
B90: Andeka noorsportlase lisatoetus | O90: =O91-O89 -> 24769.2
B91: Eelarve kokku | O91: 1099540

Sheet Leht2

Sheet Leht3
